bitfinex/quotes_SOLUSD_20240727
["timestamp","ask_amount","ask_price","bid_price","bid_amount"]
[1722111240082,20.0,179.96,179.87,1.87914907]
[1722111240285,20.0,179.93,179.85,6.0554]
[1722111240513,20.0,179.94,179.85,6.0554]
[1722111240784,20.0,179.98,179.85,6.0554]
[1722111240964,20.0,179.98,179.88,18.22]
[1722111241282,0.17,180.0,179.85,6.0554]
[1722111241283,20.0,179.96,179.85,6.0554]
[1722111241864,20.0,179.98,179.85,11.6154]
[1722111242067,20.0,179.98,179.86,20.0]
[1722111242467,20.17,180.0,179.86,20.0]
[1722111242781,0.17,179.99,179.88,18.22]
[1722111242976,0.17,179.99,179.89,20.0]
[1722111243184,20.0,180.02,179.89,20.0]
[1722111243481,20.0,180.02,179.92,18.22]
[1722111243685,20.96264736,180.07,179.92,23.7779]
[1722111243686,20.0,180.04,179.92,23.7779]
[1722111243871,20.0,180.04,179.93,20.0]
[1722111244267,20.0,180.06,179.93,42.2875]
[1722111244461,0.96281841,180.03,179.94,5.5572]
[1722111244659,20.0,180.08,179.96,33.4327]
[1722111244858,0.96260155,180.07,179.97,36.73]
[1722111245064,5.5508,180.16,179.97,36.73]
[1722111245065,20.0,180.13,179.97,36.73]
[1722111245293,20.0,180.13,180.01,16.73]
[1722111245461,20.0,180.13,180.02,20.0]
[1722111245663,20.0,180.09,179.97,20.0]
[1722111245879,20.0,180.11,179.97,20.0]
[1722111246163,20.0,180.13,180.01,16.73]
[1722111246362,20.0,180.15,180.02,42.2847]
[1722111246561,5.5502,180.18,180.08,18.22]
[1722111246562,20.0,180.18,180.08,18.22]
[1722111246766,20.0,180.2,180.09,20.0]
[1722111246992,0.96206704,180.21,180.09,20.0]
[1722111247185,0.96206704,180.21,180.09,36.73]
[1722111247504,25.5503,180.17,180.09,20.0]
[1722111247672,20.0,180.15,180.05,6.0554]
[1722111248177,20.0,180.19,180.07,13.8831]
[1722111248366,20.0,180.17,180.08,20.0]
[1722111248785,20.0,180.15,180.08,20.0]
[1722111248993,20.0,180.17,180.06,20.0]
[1722111249372,0.96217751,180.18,180.06,20.0]
[1722111249373,20.0,180.15,180.06,20.0]
[1722111249791,20.0,180.17,180.06,20.0]
[1722111250003,20.0,180.17,180.06,25.5535]
[1722111250289,0.96217283,180.16,180.06,20.0]
[1722111250505,20.0,180.14,180.06,20.0]
[1722111251067,0.96217283,180.16,180.06,20.0]
[1722111251374,20.0,180.22,180.09,5.5526]
[1722111251580,10.01870656,180.21,180.1,20.0]
[1722111251781,20.0,180.19,180.1,20.0]
[1722111252007,20.96194254,180.22,180.1,20.0]
[1722111252171,20.96194254,180.22,180.05,6.0554]
[1722111252172,20.0,180.17,180.08,20.0]
[1722111252477,20.0,180.15,180.05,6.0554]
[1722111252685,20.0,180.15,179.99,6.4086]
[1722111252874,20.0,180.1,179.99,6.4086]
[1722111253077,20.0,180.08,179.99,6.4086]
[1722111253702,0.17,180.09,179.99,6.4086]
[1722111254193,20.0,180.05,179.99,6.4086]
[1722111254494,20.17,180.04,179.95,16.0156]
[1722111254696,20.0,180.04,179.95,16.0156]
[1722111254908,20.0,180.07,179.95,16.0156]
[1722111255208,20.34,180.06,179.95,16.0156]
[1722111255506,16.73,180.15,179.96,16.73]
[1722111255507,20.0,180.1,179.96,16.73]
[1722111255672,20.0,180.1,179.99,5.5556]
[1722111255867,20.0,180.08,180.0,20.0]
[1722111256097,20.0,180.07,179.95,16.0156]
[1722111256396,20.0,180.07,179.95,21.5723]
[1722111256581,20.0,180.07,179.95,16.0156]
[1722111256777,20.0,180.07,179.94,6.4086]
[1722111256997,0.34,180.06,179.94,6.4086]
[1722111257303,20.0,180.05,179.94,6.4086]
[1722111257717,0.17,180.06,179.94,11.9658]
[1722111257879,0.34,180.06,179.94,11.9658]
[1722111258082,20.0,180.1,179.96,30.6212]
[1722111258387,0.17,180.09,179.96,13.8912]
[1722111258582,0.17,180.09,179.96,30.6212]
[1722111258786,20.0,180.08,179.94,6.4086]
[1722111259014,20.0,180.08,179.95,20.0]
[1722111259394,0.17,180.09,179.97,5.5562]
[1722111259591,10.02646875,180.08,179.98,20.0]
[1722111259825,20.0,180.1,179.98,25.5561]
[1722111260518,20.0,180.13,180.02,5.5548]
[1722111260707,20.0,180.15,180.04,5.5541]
[1722111260906,10.0234855,180.14,180.05,6.4086]
[1722111261115,20.0,180.17,180.06,20.0]
[1722111261287,20.0,180.17,180.06,25.5535]
[1722111261288,10.02274879,180.16,180.06,25.5535]
[1722111261495,15.0,180.2,180.08,19.4352]
[1722111261693,10.02012237,180.19,180.09,20.0]
[1722111261908,15.0,180.2,180.09,20.0]
[1722111262103,15.0,180.2,180.11,5.5519]
[1722111262301,15.0,180.2,180.12,20.0]
[1722111262918,15.0,180.2,180.09,36.73]
[1722111263088,15.0,180.2,180.12,5.5516]
[1722111263293,15.0,180.2,180.14,5.551]
[1722111263509,15.0,180.2,180.15,20.0]
[1722111263719,15.0,180.2,180.13,36.73]
[1722111264326,15.0,180.2,180.13,20.0]
[1722111264522,15.0,180.2,180.12,20.0]
[1722111264925,20.0,180.19,180.12,20.0]
[1722111265218,20.0,180.19,180.06,20.0]
[1722111265431,20.0,180.19,180.06,36.73]
[1722111265612,15.0,180.2,180.09,22.2826]
[1722111265810,15.0,180.2,180.09,16.73]
[1722111266225,15.0,180.2,180.08,5.5528]
[1722111266537,15.0,180.2,180.08,22.2828]
[1722111266713,15.0,180.2,180.05,8.24564187]
[1722111266714,20.0,180.19,180.06,5.5536]
[1722111266910,20.0,180.19,180.07,20.0]
[1722111267306,20.0,180.19,180.07,25.5532]
[1722111267508,15.0,180.2,180.05,8.24564187]
[1722111267708,15.0,180.2,180.12,5.5517]
[1722111268034,15.0,180.2,180.12,5.5516]
[1722111268237,15.0,180.2,180.13,5.5512]
[1722111268414,15.0,180.2,180.13,22.2812]
[1722111268821,15.0,180.2,180.14,20.0]
[1722111269018,15.0,180.2,180.14,25.551]
[1722111269327,15.0,180.2,180.15,28.6894]
[1722111269538,15.0,180.2,180.16,25.5505]
[1722111269725,15.0,180.2,180.16,42.2805]
[1722111270124,15.0,180.2,180.16,20.0]
[1722111271426,15.0,180.2,180.16,36.73]
[1722111271630,15.0,180.2,180.17,16.73]
[1722111271834,7.83384814,180.2,180.18,20.0]
[1722111272015,7.83384814,180.2,180.17,5.5502]
[1722111272335,7.83384814,180.2,180.18,20.0]
[1722111272527,7.83384814,180.2,180.18,36.73]
[1722111273533,7.83384814,180.2,180.18,42.2798]
[1722111273926,7.83384814,180.2,180.18,36.73]
[1722111274131,20.0,180.3,180.18,20.0]
[1722111274334,0.96066515,180.31,180.18,36.73]
[1722111274516,16.365,180.34,180.24,5.5479]
[1722111274716,20.0,180.34,180.25,20.0]
[1722111274913,20.0,180.32,180.25,20.0]
[1722111275118,27.61483852,180.35,180.21,5.5488]
[1722111275339,20.0,180.33,180.22,20.0]
[1722111275539,27.61483852,180.35,180.22,20.0]
[1722111275748,27.61483852,180.35,180.21,25.5489]
[1722111276040,20.0,180.32,180.21,20.0]
[1722111276214,7.61483852,180.35,180.15,20.2853]
[1722111276215,20.0,180.29,180.15,20.2853]
[1722111276421,20.0,180.27,180.15,20.2853]
[1722111276624,20.0,180.3,180.15,20.2853]
[1722111276931,20.0,180.26,180.15,20.2853]
[1722111277445,20.0,180.26,180.09,6.6007]
[1722111277446,20.0,180.22,180.09,6.6007]
[1722111277760,20.0,180.19,180.09,6.6007]
[1722111278044,20.0,180.19,180.06,5.5535]
[1722111278240,6.6544,180.23,180.05,34.9]
[1722111278420,6.6544,180.23,180.12,5.5517]
[1722111278620,35.78,180.26,180.14,5.551]
[1722111278816,35.78,180.26,180.05,1.91887944]
[1722111278817,15.78,180.26,180.13,18.17]
[1722111279021,20.0,180.31,180.15,6.6007]
[1722111279244,15.78,180.32,180.21,5.5488]
[1722111279659,15.78,180.32,180.23,5.5483]
[1722111279823,15.78,180.32,180.24,20.0]
[1722111280342,15.78,180.32,180.22,20.0]
[1722111280720,15.78,180.32,180.23,5.5482]
[1722111280941,15.78,180.32,180.24,20.0]
[1722111281142,15.78,180.32,180.16,13.8762]
[1722111281351,35.78,180.32,180.19,5.5495]
[1722111281552,35.78,180.32,180.17,5.5501]
[1722111281731,35.78,180.32,180.19,5.5496]
[1722111282131,15.78,180.32,180.2,13.8729]
[1722111282331,15.78,180.32,180.21,5.5489]
[1722111282539,15.78,180.32,180.22,20.0]
[1722111282732,35.78,180.32,180.22,20.0]
[1722111282931,35.78,180.32,180.21,20.0]
[1722111283140,15.78,180.32,180.2,5.5492]
[1722111283337,35.78,180.32,180.21,20.0]
[1722111283735,35.78,180.32,180.16,20.0]
[1722111283937,0.34,180.31,180.19,13.8742]
[1722111284142,0.34,180.31,180.2,20.0]
[1722111284463,0.17,180.31,180.2,20.0]
[1722111284756,0.34,180.31,180.2,20.0]
[1722111284954,0.17,180.31,180.2,25.5492]
[1722111285335,35.78,180.32,180.2,25.5492]
[1722111285954,35.78,180.32,180.2,20.0]
[1722111286137,0.34,180.31,180.2,20.0]
[1722111286544,0.17,180.31,180.2,25.5492]
[1722111286749,0.34,180.31,180.2,20.0]
[1722111287052,20.0,180.29,180.2,20.0]
[1722111287249,20.34,180.31,180.17,5.5501]
[1722111288262,20.34,180.31,180.18,30.6043]
[1722111288462,20.0,180.29,180.15,8.52049775]
[1722111288655,20.0,180.3,180.16,5.5505]
[1722111288838,20.0,180.28,180.16,5.5505]
[1722111289061,0.17,180.29,180.17,5.5502]
[1722111289253,0.17,180.29,180.16,16.73]
[1722111289478,35.78,180.32,180.21,5.5489]
[1722111289769,0.34,180.31,180.21,5.5489]
[1722111290055,35.78,180.32,180.22,20.0]
[1722111290246,10.01351475,180.31,180.22,20.0]
[1722111290450,35.78,180.32,180.2,20.0]
[1722111290679,15.78,180.32,180.21,13.8725]
[1722111290878,35.78,180.32,180.22,20.0]
[1722111291173,15.78,180.32,180.22,20.0]
[1722111291774,30.01338587,180.31,180.22,20.0]
[1722111292078,10.01338587,180.31,180.22,20.0]
[1722111292262,15.78,180.32,180.22,20.0]
[1722111292462,30.18351351,180.31,180.22,20.0]
[1722111292778,20.17,180.31,180.22,20.0]
[1722111293374,10.18403255,180.3,180.18,25.5498]
[1722111293680,15.78,180.32,180.2,16.73]
[1722111293975,0.17,180.31,180.21,20.0]
[1722111294157,0.34,180.31,180.21,20.0]
[1722111294753,15.78,180.32,180.21,20.0]
[1722111294956,15.78,180.32,180.21,25.5489]
[1722111294957,10.01362161,180.31,180.21,25.5489]
[1722111295169,15.78,180.32,180.21,20.0]
[1722111295572,15.78,180.32,180.21,36.73]
[1722111295869,15.78,180.32,180.21,20.0]
[1722111296183,15.78,180.32,180.21,36.73]
[1722111296365,15.78,180.32,180.21,20.0]
[1722111296560,15.78,180.32,180.21,25.549]
[1722111297369,15.78,180.32,180.22,5.5487]
[1722111297679,15.78,180.32,180.23,20.0]
[1722111297975,6.6544,180.33,180.23,20.0]
[1722111298178,26.6544,180.33,180.23,20.0]
[1722111298370,26.6544,180.33,180.21,20.0]
[1722111298576,6.6544,180.33,180.21,20.0]
[1722111298779,26.6544,180.33,180.21,20.0]
[1722111299284,0.34,180.32,180.21,20.0]
[1722111300576,20.0,180.29,180.21,20.0]
[1722111300780,40.0,180.29,180.17,1.89386902]
[1722111300975,0.17,180.28,180.15,12.1513]
[1722111301162,0.17,180.28,180.15,6.6007]
[1722111301163,20.0,180.26,180.15,6.6007]
[1722111301357,20.0,180.26,180.1,25.7606]
[1722111301358,62.1067,180.26,180.1,25.7606]
[1722111301558,20.0,180.24,180.11,5.5521]
[1722111301958,6.4792,180.23,180.1,20.2084]
[1722111302159,20.0,180.21,180.1,20.2084]
[1722111302375,26.4792,180.23,180.1,25.7607]
[1722111302879,26.4792,180.23,180.1,6.3276]
[1722111302880,20.0,180.21,180.1,6.3276]
[1722111303063,20.0,180.21,180.06,25.7653]
[1722111303266,20.0,180.19,180.06,25.7653]
[1722111303581,20.0,180.17,180.06,13.8842]
[1722111303898,20.0,180.17,180.0,24.5076]
[1722111303899,20.0,180.15,180.01,13.8878]
[1722111304091,20.0,180.17,180.05,13.8845]
[1722111304301,20.0,180.17,180.05,19.4384]
[1722111304586,0.17,180.16,180.05,19.4384]
[1722111304778,0.17,180.18,180.08,5.5528]
[1722111304980,0.17,180.18,180.05,30.6145]
[1722111305185,20.0,180.21,180.1,5.5523]
[1722111305388,20.0,180.19,180.11,20.0]
[1722111305580,20.0,180.17,180.02,18.18]
[1722111305790,10.01801986,180.16,180.02,40.4647]
[1722111306097,20.0,180.14,180.0,8.22166091]
[1722111306267,20.0,180.12,180.0,8.22166091]
[1722111306478,20.0,180.12,180.0,13.77696091]
[1722111306992,6.3092,180.11,179.99,13.8894]
[1722111307288,20.0,180.07,179.94,13.893]
[1722111307693,20.0,180.07,179.93,8.23457101]
[1722111308004,20.0,180.04,179.93,13.8939]
[1722111308301,20.0,180.08,179.96,5.5566]
[1722111308595,0.17,180.07,179.96,5.5566]
[1722111308768,6.3092,180.11,179.97,16.73]
[1722111308968,10.02116562,180.13,180.01,30.6177]
[1722111309287,10.02143094,180.12,180.01,30.6177]
[1722111309588,10.02116562,180.13,180.02,20.0]
[1722111309784,10.02116562,180.13,180.05,13.8845]
[1722111309967,10.02116562,180.13,180.06,20.0]
[1722111310171,10.02116562,180.13,180.09,13.8815]
[1722111310472,10.02116562,180.13,180.1,20.0]
[1722111311186,10.02116562,180.13,180.03,18.18]
[1722111311187,10.02116562,180.13,180.07,20.0]
[1722111311371,10.02116562,180.13,180.06,20.0]
[1722111312064,10.02116562,180.13,180.01,1.9382707]
[1722111312065,20.0,180.11,180.01,1.9382707]
[1722111312270,0.17,180.12,180.01,5.555]
[1722111312495,0.17,180.12,179.94,6.3801]
[1722111312496,20.0,180.11,179.94,6.3801]
[1722111312667,20.0,180.05,179.94,32.0731]
[1722111313204,20.0,180.05,179.94,13.8931]
[1722111313377,10.02664799,180.04,179.98,13.89]
[1722111313691,15.3193,180.1,179.99,5.5557]
[1722111313871,10.19468979,180.09,179.99,5.5557]
[1722111314065,10.024672,180.08,179.99,5.5557]
[1722111314293,0.17,180.09,180.0,5.5554]
[1722111314502,20.0,180.07,179.94,5.5573]
[1722111314675,20.0,180.04,179.93,13.894]
[1722111314875,0.17,180.05,179.93,13.894]
[1722111315078,35.3193,180.1,179.96,16.73]
[1722111315387,35.3193,180.1,179.97,13.8908]
[1722111315601,15.3193,180.1,179.97,13.8908]
[1722111315775,10.0253337,180.09,179.97,13.8908]
[1722111315975,15.3193,180.1,179.98,36.73]
[1722111316298,15.3193,180.1,180.01,13.888]
[1722111316471,15.3193,180.1,180.02,20.0]
[1722111316673,35.3193,180.1,179.98,25.5559]
[1722111316978,15.3193,180.1,179.98,42.2859]
[1722111317177,35.3193,180.1,179.98,20.0]
[1722111317486,20.0,180.06,179.91,13.8954]
[1722111317691,10.02564686,180.05,179.91,13.8954]
[1722111317889,0.17,180.04,179.92,16.73]
[1722111318273,20.0,180.06,179.92,22.2879]
[1722111318478,0.34,180.05,179.95,5.557]
[1722111318687,20.0,180.08,179.94,16.73]
[1722111318894,20.0,180.08,179.95,30.6223]
[1722111319125,20.0,180.08,179.95,13.8923]
[1722111319401,20.0,180.05,179.93,22.2875]
[1722111319773,20.34,180.07,179.94,20.0]
[1722111319974,25.8936,180.07,179.9,19.4544]
[1722111320174,20.0,180.03,179.91,5.5582]
[1722111320399,15.3193,180.0,179.89,13.8972]
[1722111320578,15.3193,180.0,179.85,5.5599]
[1722111320579,20.0,179.97,179.85,5.5599]
[1722111320910,20.17,179.99,179.85,5.5599]
[1722111321083,6.3103,179.96,179.85,16.73]
[1722111321276,6.3103,179.96,179.85,22.29]
[1722111321486,6.3103,179.96,179.86,5.5597]
[1722111321679,20.0,179.95,179.82,5.5608]
[1722111321879,6.3103,179.96,179.85,5.56]
[1722111322108,6.3103,179.96,179.87,16.73]
[1722111322274,26.3103,180.01,179.88,20.0]
[1722111322597,6.3103,180.01,179.88,38.18]
[1722111322898,35.3193,180.0,179.88,20.0]
[1722111323206,35.3193,180.0,179.85,20.0]
[1722111323207,15.3193,180.0,179.85,20.0]
[1722111323498,15.3193,180.0,179.9,5.5585]
[1722111323709,15.3193,180.0,179.91,20.0]
[1722111324282,15.3193,180.0,179.91,36.73]
[1722111324491,15.3193,180.0,179.93,5.5575]
[1722111324698,15.3193,180.0,179.94,20.0]
[1722111325282,35.3193,180.0,179.9,20.0]
[1722111325501,15.3193,180.0,179.9,20.0]
[1722111325704,15.3193,180.0,179.9,25.5585]
[1722111326082,15.3193,180.0,179.9,20.0]
[1722111326577,15.3193,180.0,179.89,20.0]
[1722111326778,15.3193,180.0,179.89,36.73]
[1722111327081,6.3103,180.01,179.93,16.73]
[1722111327312,15.3193,180.05,179.94,20.0]
[1722111327615,55.3193,180.05,179.94,20.0]
[1722111327901,35.3193,180.05,179.93,36.73]
[1722111328088,35.3193,180.05,179.93,25.5576]
[1722111328295,35.3193,180.05,179.93,20.0]
[1722111328496,35.3193,180.05,179.93,36.73]
[1722111328795,35.3193,180.05,179.93,20.0]
[1722111328999,20.0,180.02,179.93,20.0]
[1722111329199,20.0,180.02,179.87,32.0787]
[1722111329509,20.0,179.97,179.83,5.5606]
[1722111329884,0.34,179.96,179.83,5.5606]
[1722111330078,0.34,179.96,179.84,22.2903]
[1722111330290,20.0,179.95,179.81,22.21694159]
[1722111330610,15.3193,179.99,179.78,18.18]
[1722111330611,40.0,179.91,179.78,5.562]
[1722111330781,15.3193,179.9,179.77,2.66592072]
[1722111330979,15.3193,179.9,179.79,5.5618]
[1722111331183,15.3193,179.9,179.77,0.7789452]
[1722111331384,35.3193,179.9,179.77,0.7789452]
[1722111331586,20.0,179.85,179.77,0.7789452]
[1722111331810,0.17,179.84,179.77,0.7789452]
[1722111331998,6.6301,179.84,179.77,0.7789452]
[1722111332184,20.0,179.8,179.77,0.7789452]
[1722111332992,20.0,179.78,179.77,0.7789452]
[1722111333401,0.34,179.78,179.65,1.97508948]
[1722111333583,20.0,179.81,179.61,16.73]
[1722111333784,20.0,179.81,179.73,5.5638]
[1722111334101,20.0,179.77,179.61,22.22260064]
[1722111334410,20.0,179.79,179.61,22.22260064]
[1722111334621,20.0,179.81,179.72,5.564]
[1722111334790,6.6301,179.84,179.75,5.5631]
[1722111334791,20.0,179.83,179.75,5.5631]
[1722111334998,20.0,179.83,179.66,14.73]
[1722111335197,20.0,179.83,179.72,5.5641]
[1722111335610,20.0,179.83,179.73,25.5636]
[1722111335913,20.0,179.83,179.74,45.0]
[1722111336095,20.0,179.83,179.75,20.0]
[1722111336293,20.0,179.83,179.76,45.0]
[1722111337117,6.9701,179.84,179.76,45.0]
[1722111337311,6.6301,179.84,179.76,45.0]
[1722111338015,20.0,179.88,179.77,20.0]
[1722111338207,15.3193,179.9,179.8,5.5614]
[1722111338405,15.3193,179.9,179.81,65.0]
[1722111338610,15.3193,179.9,179.7,6.50366411]
[1722111338611,20.0,179.86,179.7,6.50366411]
[1722111338794,20.0,179.85,179.71,20.0]
[1722111339116,20.0,179.87,179.77,5.5623]
[1722111339318,20.0,179.87,179.78,20.0]
[1722111339319,20.0,179.83,179.78,20.0]
[1722111339494,20.0,179.86,179.7,16.73]
[1722111339819,20.0,179.86,179.66,15.261]
[1722111339820,20.0,179.86,179.78,5.5622]
[1722111340001,20.0,179.86,179.79,20.0]
[1722111340206,20.0,179.86,179.8,45.0]
[1722111340412,15.3193,179.9,179.83,5.5607]
[1722111340722,15.3193,179.9,179.8,45.0]
[1722111340723,20.0,179.9,179.8,45.0]
[1722111340920,20.0,179.92,179.81,20.0]
[1722111341125,20.0,179.94,179.82,45.0]
[1722111341411,20.0,179.92,179.83,20.0]
[1722111341621,20.0,179.92,179.84,45.0]
[1722111341797,20.0,179.92,179.85,20.0]
[1722111341994,20.0,179.94,179.85,20.0]
[1722111342204,20.0,179.94,179.86,45.0]
[1722111342515,20.0,179.94,179.85,20.0]
[1722111342716,20.0,179.94,179.86,45.0]
[1722111342922,20.0,179.92,179.85,45.0]
[1722111343132,20.0,179.87,179.68,6.1711]
[1722111343291,20.0,179.84,179.74,5.5634]
[1722111343498,20.0,179.84,179.72,5.564]
[1722111343705,20.0,179.86,179.69,16.73]
[1722111343902,20.0,179.86,179.75,5.563]
[1722111344117,20.0,179.84,179.75,5.563]
[1722111344332,20.0,179.87,179.69,16.73]
[1722111344525,20.0,179.85,179.69,16.73]
[1722111344819,20.0,179.89,179.69,16.73]
[1722111345024,20.0,179.85,179.76,5.5628]
[1722111345211,20.17,179.88,179.69,16.73]
[1722111345717,20.17,179.88,179.71,16.73]
[1722111346016,20.0,179.88,179.73,16.73]
[1722111346227,20.0,179.88,179.77,5.5626]
[1722111346400,20.0,179.88,179.81,5.5613]
[1722111346607,20.0,179.9,179.82,45.0]
[1722111346810,20.0,179.92,179.82,45.0]
[1722111347011,6.6301,179.96,179.82,45.0]
[1722111347012,20.0,179.94,179.82,45.0]
[1722111347327,20.0,179.94,179.85,5.56]
[1722111347519,26.6301,179.96,179.84,5.5604]
[1722111347706,20.0,179.92,179.85,20.0]
[1722111347904,7.5898809,179.96,179.85,20.0]
[1722111348107,6.6301,179.96,179.86,45.0]
[1722111348430,20.0,179.92,179.79,1.93433364]
[1722111348630,20.0,179.92,179.78,15.261]
[1722111348933,20.0,179.94,179.83,5.5607]
[1722111349140,26.6301,179.96,179.84,20.0]
[1722111349302,26.6301,179.96,179.79,36.73]
[1722111349303,20.0,179.94,179.85,5.56]
[1722111349508,6.6301,179.96,179.88,5.5591]
[1722111349712,43.30938638,180.0,179.79,36.73]
[1722111349932,20.95938638,180.0,179.89,25.5587]
[1722111350148,20.0,179.99,179.89,20.0]
[1722111350626,20.0,179.99,179.83,16.73]
[1722111350829,20.0,179.99,179.85,16.73]
[1722111351033,20.0,179.99,179.86,65.0]
[1722111351233,20.0,179.99,179.89,5.5588]
[1722111351431,20.0,179.99,179.9,20.0]
[1722111351738,35.0636,180.03,179.9,20.0]
[1722111351739,15.0636,180.03,179.9,20.0]
[1722111351916,20.0,180.06,179.91,68.1944]
[1722111352121,20.0,180.06,179.97,5.5563]
[1722111352309,28.6693,180.1,179.99,5.5556]
[1722111352310,20.0,180.09,179.99,5.5556]
[1722111352517,20.0,180.09,180.0,65.0]
[1722111352740,20.95934252,180.12,180.03,5.5544]
[1722111353130,0.95934252,180.12,180.03,5.5544]
[1722111353438,16.4741,180.13,180.04,65.0]
[1722111353740,16.4741,180.13,180.04,20.0]
[1722111354031,20.0,180.12,179.94,16.73]
[1722111354220,16.4741,180.13,180.03,5.5544]
[1722111354424,16.4741,180.13,180.04,20.0]
[1722111354633,16.4741,180.13,180.05,45.0]
[1722111354817,20.0,180.12,180.04,20.0]
[1722111355014,20.9592357,180.15,180.02,20.0]
[1722111355323,6.3193,180.16,179.94,46.95054492]
[1722111355324,6.3193,180.16,180.03,45.0]
[1722111355537,20.95985296,180.19,180.04,20.0]
[1722111355729,20.95985296,180.19,180.08,5.5529]
[1722111356043,20.0,180.21,180.09,20.0]
[1722111356213,1.73902918,180.22,180.1,45.0]
[1722111356408,0.7789452,180.22,180.15,5.5507]
[1722111356615,0.7789452,180.22,180.16,65.0]
[1722111357746,28.6693,180.35,180.16,65.0]
[1722111357747,0.95967431,180.31,180.16,65.0]
[1722111357927,20.0,180.33,180.16,65.0]
[1722111358135,7.27924138,180.35,180.17,0.17]
[1722111358340,20.0,180.36,180.18,6.4644]
[1722111358524,20.0,180.36,180.19,45.17]
[1722111358714,20.0,180.34,180.2,20.0]
[1722111358923,20.0,180.35,180.21,45.0]
[1722111359115,20.0,180.37,180.22,20.0]
[1722111359329,20.0,180.39,180.23,45.0]
[1722111359533,20.0,180.37,180.24,20.0]
[1722111359736,20.0,180.37,180.25,45.0]
[1722111360064,0.7789452,180.4,180.26,20.0]
[1722111360220,0.7789452,180.4,180.27,45.0]
[1722111360565,0.7789452,180.4,180.28,20.0]
[1722111360847,0.7789452,180.4,180.29,61.73]
[1722111361048,0.7789452,180.4,180.3,36.73]
[1722111361246,0.7789452,180.4,180.31,45.0]
[1722111361448,0.7789452,180.4,180.32,20.0]
[1722111361632,0.7789452,180.4,180.33,51.4644]
[1722111361832,0.7789452,180.4,180.34,36.73]
[1722111362023,0.7789452,180.4,180.34,37.07]
[1722111362532,20.95936418,180.55,180.34,37.07]
[1722111362746,0.95936418,180.55,180.34,37.07]
[1722111362924,20.0,180.57,180.34,43.91166411]
[1722111363125,20.0,180.57,180.36,16.73]
[1722111363339,20.0,180.56,180.37,27.56761967]
[1722111363539,20.0,180.56,180.37,44.12761967]
[1722111363740,20.0,180.51,180.37,20.0]
[1722111363954,20.0,180.49,180.33,6.4644]
[1722111364174,6.75240635,180.57,180.28,7.22761967]
[1722111364175,20.0,180.45,180.28,7.22761967]